fUSD/lending_fUSD_20260425
["ID","MTS","AMOUNT","RATE_DAILY","PERIOD"]
[421120835,1777090240141,-37554.3188963,8.7e-05,2]
[421120836,1777090240152,-251.0,8.7e-05,2]
[421120837,1777090240162,-250.0,9.568e-05,2]
[421120838,1777090240174,-300.0,9.568e-05,2]
[421120839,1777090240185,-1149.0,9.568e-05,2]
[421120840,1777090240195,-420.0,9.569e-05,2]
[421120841,1777090240206,-500.0,9.889e-05,2]
[421120842,1777090240217,-500.0,9.889e-05,2]
[421120843,1777090240227,-500.0,9.889e-05,2]
[421120844,1777090240238,-500.0,9.889e-05,2]
[421120845,1777090240249,-500.0,9.889e-05,2]
[421120846,1777090240260,-311.54551763,9.889e-05,2]
[421120847,1777090240271,-500.0,9.889e-05,2]
[421120848,1777090240283,-275.78780682,9.889e-05,2]
[421120849,1777090240295,-24331.50134423,9.89e-05,3]
[421120850,1777090240306,-2382.89021082,0.00011785,2]
[421120851,1777090240317,-150.0,0.00011885,2]
[421120852,1777090240328,-150.0,0.00011885,2]
[421120853,1777090240339,-971.45,0.00012087,2]
[421120854,1777090240349,-299.99,0.00012087,2]
[421120855,1777090240360,-150.99,0.00012087,2]
[421120856,1777090240370,-6329.46,0.00012087,2]
[421120857,1777090240381,-3862.86,0.00012087,2]
[421120858,1777090240391,-623.0,0.00012151,2]
[421120859,1777090240401,-2475.0,0.00012151,2]
[421120860,1777090240412,-3781.0,0.00012151,2]
[421120861,1777090240422,-150.0,0.00012325,2]
[421120862,1777090240433,-150.0,0.00012545,2]
[421120863,1777090240444,-162.24807931,0.00012574,2]
[421120864,1777090240454,-160.0,0.00012574,2]
[421120865,1777090240464,-150.0,0.00012765,2]
[421120866,1777090240475,-200.0,0.000129,4]
[421120867,1777090240485,-250.0,0.00013,2]
[421120868,1777090240495,-5530.0,0.00013,5]
[421120869,1777090240505,-162.82489003,0.00013023,2]
[421120870,1777090240515,-2000.0,0.00013023,2]
[421120871,1777090240525,-500.0,0.00013123,2]
[421120872,1777090240536,-5000.0,0.00013123,2]
[421120873,1777090240547,-4927.72108164,0.00013125,2]
[421120874,1777090240557,-158.65291331,0.00013205,2]
[421120875,1777090240567,-209.89393966,0.00013205,2]
[421120876,1777090240577,-151.0,0.00013215,2]
[421120877,1777090240588,-500.0,0.00013215,2]
[421120878,1777090240598,-151.0,0.00013215,2]
[421120879,1777090240608,-500.0,0.00013215,2]
[421120880,1777090240618,-151.0,0.00013215,2]
[421120881,1777090240628,-500.0,0.00013215,2]
[421120882,1777090240638,-151.0,0.00013215,2]
[421120883,1777090240648,-151.0,0.00013215,2]
[421120884,1777090240659,-500.0,0.00013215,2]
[421120885,1777090240668,-151.0,0.00013215,2]
[421120886,1777090240678,-500.0,0.00013215,2]
[421120887,1777090240688,-151.0,0.00013215,2]
[421120888,1777090240698,-500.0,0.00013215,2]
[421120889,1777090240708,-151.0,0.00013215,2]
[421120890,1777090240719,-500.0,0.00013215,2]
[421120891,1777090240729,-151.0,0.00013215,2]
[421120892,1777090240739,-500.0,0.00013215,2]
[421120893,1777090240748,-151.0,0.00013215,2]
[421120894,1777090240758,-500.0,0.00013215,2]
[421120895,1777090240769,-151.0,0.00013215,2]
[421120896,1777090240779,-500.0,0.00013215,2]
[421120897,1777090240788,-500.0,0.00013215,2]
[421120898,1777090240798,-151.0,0.00013215,2]
[421120899,1777090240808,-500.0,0.00013215,2]
[421120900,1777090240819,-151.0,0.00013215,2]
[421120901,1777090240829,-500.0,0.00013215,2]
[421120902,1777090240839,-500.0,0.00013215,2]
[421120903,1777090240849,-1289.58892492,0.00013215,2]
[421120904,1777090240860,-151.0,0.00013215,2]
[421120905,1777090240870,-151.0,0.00013223,2]
[421120906,1777090240880,-152.0,0.00013225,7]
[421120907,1777090240890,-152.0,0.00013255,7]
[421120908,1777090240901,-152.0,0.00013269,7]
[421120909,1777090240911,-500.47539228,0.00013273,2]
[421120910,1777090240921,-504.0,0.000135,2]
[421120911,1777090240931,-1588.69697313,0.00013677,2]
[421120912,1777090240941,-500.0,0.00013698,2]
[421120913,1777090240951,-508.88,0.000137,2]
[421120914,1777090240960,-500.0,0.00013942,2]
[421120915,1777090240971,-194.0,0.0001469,2]
[421120916,1777090240981,-194.0,0.00014705,2]
[421120917,1777090240992,-194.0,0.00014755,2]
[421120918,1777090241003,-194.0,0.00014803,2]
[421120919,1777090241013,-504.0,0.0001483,3]
[421120920,1777090241023,-194.0,0.00014831,2]
[421120921,1777090241033,-194.0,0.00014861,2]
[421120922,1777090241043,-194.0,0.00014894,2]
[421120923,1777090241053,-194.0,0.00014917,2]
[421120924,1777090241063,-194.0,0.00014955,2]
[421120925,1777090241073,-194.0,0.00014981,2]
[421120926,1777090241083,-160.0,0.00015,2]
[421120927,1777090241093,-300.0,0.00015,2]
[421120928,1777090241103,-194.0,0.00015014,2]
[421120929,1777090241113,-194.0,0.00015058,2]
[421120930,1777090241123,-194.0,0.00015061,2]
[421120931,1777090241133,-194.0,0.00015107,2]
[421120932,1777090241142,-623.0,0.00015151,2]
[421120933,1777090241152,-2475.0,0.00015151,2]
[421120934,1777090241162,-3781.0,0.00015151,2]
[421120935,1777090241172,-194.0,0.00015278,2]
[421120936,1777090241182,-194.0,0.00015423,2]
[421120937,1777090241192,-194.0,0.00015454,2]
[421120938,1777090241203,-153.97383793,0.00015554,2]
[421120939,1777090241212,-526.23914343,0.00015563,2]
[421120940,1777090241222,-174.12226729,0.00015563,2]
[421120941,1777090241233,-500.0,0.00015563,2]
[421120942,1777090241243,-500.0,0.00015563,2]
[421120943,1777090241254,-205.30974317,0.00015563,2]
[421120944,1777090241264,-94799.5645522,0.00015564,2]
[421120945,1777090241284,-652.08200092,0.00015564,2]
[421120962,1777090242835,-278.72315763,0.00012161,2]
[421120963,1777090242941,-137.27684237,0.00012161,2]
[421120964,1777090242951,-151.0,0.00013698,2]
[421120965,1777090242961,-151.0,0.00014861,2]
[421120966,1777090242970,-290.84795269,0.00015564,2]
[421120967,1777090243153,-161680.144458,0.00015564,2]
[421120973,1777090245909,-339.319,0.00015161,2]
[421120974,1777090245919,-306.7310007,0.00015564,2]
[421120975,1777090245964,-2000.0,0.00015564,2]
[421120976,1777090245976,-830.4755708,0.00015564,2]
[421120977,1777090246026,-3792.99402436,0.00015564,2]
[421120982,1777091432092,-1441.96,9.9e-05,2]
[421120983,1777091432107,-275.07856977,0.00012846,2]
[421120984,1777091432120,-924.92143023,0.00012846,2]
[421120985,1777091432130,-1105.0,0.00012847,2]
[421120986,1777091432140,-189.0,0.00012847,2]
[421120987,1777091432151,-288.81868007,0.00012847,2]
[421120989,1777091432312,-11.18131993,0.00012847,2]
[421120991,1777091432323,-266.52689036,0.00012848,2]
[421120993,1777091432336,-356.47310964,0.00012848,2]
[421120995,1777091432347,-504.0,0.000135,2]
[421120996,1777091432357,-150.0,0.00013697,2]
[421120997,1777091432367,-516.28680288,0.00013698,2]
[421120998,1777091432378,-24999.99,0.00013698,2]
[421120999,1777091432388,-3198.05,0.00013698,2]
[421121000,1777091432398,-150.0,0.00013907,2]
[421121001,1777091432408,-3071.785,0.0001432,2]
[421121002,1777091432418,-209.979,0.0001432,2]
[421121003,1777091432428,-999.99,0.0001432,2]
[421121004,1777091432438,-215.82,0.0001432,2]
[421121005,1777091432448,-1000.0,0.000145,5]
[421121006,1777091432459,-2100.0,0.000146,5]
[421121008,1777091432469,-150.0,0.00014679,2]
[421121009,1777091432479,-3200.0,0.000147,5]
[421121010,1777091432489,-4300.0,0.000148,5]
[421121011,1777091432500,-504.0,0.00014885,3]
[421121012,1777091432510,-162.24807931,0.00014895,2]
[421121013,1777091432521,-5400.0,0.000149,5]
[421121014,1777091432532,-4223.76092712,0.00015364,2]
[421121015,1777091432543,-2085.02893445,0.00015364,2]
[421121016,1777091432554,-320.97640904,0.00015364,2]
[421121017,1777091432565,-5000.0,0.00015364,2]
[421121018,1777091432575,-2500.0,0.00015364,2]
[421121019,1777091432585,-701.58329648,0.00015394,2]
[421121020,1777091432595,-651.4243987,0.00015394,2]
[421121021,1777091432606,-150.0,0.00015452,2]
[421121022,1777091432617,-151.0,0.00015455,2]
[421121023,1777091432627,-500.0,0.00015455,2]
[421121024,1777091432638,-151.0,0.00015455,2]
[421121025,1777091432648,-500.0,0.00015455,2]
[421121026,1777091432659,-151.0,0.00015455,2]
[421121027,1777091432669,-500.0,0.00015455,2]
[421121028,1777091432680,-151.0,0.00015455,2]
[421121029,1777091432690,-500.0,0.00015455,2]
[421121030,1777091432701,-500.0,0.00015455,2]
[421121031,1777091432711,-151.0,0.00015455,2]
[421121032,1777091432722,-500.0,0.00015455,2]
[421121033,1777091432732,-151.0,0.00015455,2]
[421121034,1777091432743,-500.0,0.00015455,2]
[421121035,1777091432754,-151.0,0.00015455,2]
[421121036,1777091432764,-500.0,0.00015455,2]
[421121037,1777091432775,-151.0,0.00015455,2]
[421121038,1777091432785,-500.0,0.00015455,2]
[421121039,1777091432795,-151.0,0.00015455,2]
[421121040,1777091432805,-500.0,0.00015455,2]
[421121041,1777091432815,-151.0,0.00015455,2]
[421121042,1777091432825,-500.0,0.00015455,2]
[421121043,1777091432835,-151.0,0.00015455,2]
[421121044,1777091432846,-500.0,0.00015455,2]
[421121045,1777091432856,-151.0,0.00015455,2]
[421121046,1777091432866,-500.0,0.00015455,2]
[421121047,1777091432876,-151.0,0.00015455,2]
[421121048,1777091432887,-231.83757092,0.00015463,2]
[421121049,1777091432896,-161.46085783,0.00015463,2]
[421121050,1777091432906,-500.0,0.00015463,2]
[421121051,1777091432916,-173.814773,0.00015463,2]
[421121052,1777091432926,-500.0,0.00015463,2]
[421121053,1777091432936,-500.0,0.00015463,2]
[421121054,1777091432946,-500.0,0.00015463,2]
[421121055,1777091432956,-500.0,0.00015463,2]
[421121056,1777091432966,-500.0,0.00015463,2]
[421121057,1777091432976,-500.0,0.00015463,2]
[421121058,1777091432986,-500.0,0.00015463,2]
[421121059,1777091432996,-500.0,0.00015463,2]
[421121060,1777091433005,-500.0,0.00015463,2]
[421121061,1777091433015,-500.0,0.00015463,2]
[421121062,1777091433025,-500.0,0.00015463,2]
[421121063,1777091433035,-500.0,0.00015463,2]
[421121064,1777091433045,-500.0,0.00015463,2]
[421121065,1777091433055,-500.0,0.00015463,2]
[421121066,1777091433065,-500.0,0.00015463,2]
[421121067,1777091433075,-500.0,0.00015463,2]
[421121068,1777091433084,-500.0,0.00015463,2]
[421121069,1777091433094,-500.0,0.00015463,2]
[421121070,1777091433105,-500.0,0.00015463,2]
[421121071,1777091433114,-500.0,0.00015463,2]
[421121072,1777091433124,-500.0,0.00015463,2]
[421121073,1777091433134,-500.0,0.00015463,2]
[421121074,1777091433144,-500.0,0.00015463,2]
[421121075,1777091433154,-253.81640713,0.00015463,2]
[421121078,1777091439521,-246.18359287,0.00015463,2]
[421121079,1777091439537,-467.5328791,0.00015463,2]
[421121080,1777091439554,-32.4671209,0.00015463,2]
[421121081,1777091439568,-500.0,0.00015463,2]
[421121082,1777091439582,-363.69719224,0.00015463,2]
[421121083,1777091439604,-136.30280776,0.00015463,2]
[421121084,1777091439619,-500.0,0.00015463,2]
[421121085,1777091439632,-500.0,0.00015463,2]
[421121086,1777091439646,-278.59587647,0.00015463,2]
[421121087,1777091439663,-221.40412353,0.00015463,2]
[421121088,1777091439677,-500.0,0.00015463,2]
[421121089,1777091439691,-500.0,0.00015463,2]
[421121090,1777091439705,-500.0,0.00015463,2]
[421121091,1777091439719,-500.0,0.00015463,2]
[421121092,1777091439733,-500.0,0.00015463,2]
[421121093,1777091439746,-500.0,0.00015463,2]
[421121094,1777091439760,-500.0,0.00015463,2]
[421121095,1777091439773,-500.0,0.00015463,2]
[421121096,1777091439787,-500.0,0.00015463,2]
[421121097,1777091439800,-500.0,0.00015463,2]
[421121098,1777091439813,-500.0,0.00015463,2]
[421121099,1777091439827,-500.0,0.00015463,2]
[421121100,1777091439840,-500.0,0.00015463,2]
[421121101,1777091439853,-234.92613902,0.00015463,2]
[421121102,1777091439866,-500.0,0.00015463,2]
[421121103,1777091439881,-500.0,0.00015463,2]
[421121104,1777091439894,-500.0,0.00015463,2]
[421121105,1777091439907,-500.0,0.00015463,2]
[421121106,1777091439921,-500.0,0.00015463,2]
[421121107,1777091439933,-478.05827609,0.00015463,2]
[421121108,1777091439946,-457.18184031,0.00015463,2]
[421121109,1777091439964,-42.81815969,0.00015463,2]
[421121111,1777091439977,-500.0,0.00015463,2]
[421121112,1777091439990,-500.0,0.00015463,2]
[421121113,1777091440003,-500.0,0.00015463,2]
[421121114,1777091440015,-257.87415837,0.00015463,2]
[421121115,1777091440043,-242.12584163,0.00015463,2]
[421121116,1777091440056,-303.78080018,0.00015463,2]
[421121117,1777091440070,-196.21919982,0.00015463,2]
[421121118,1777091440083,-500.0,0.00015463,2]
[421121119,1777091440095,-500.0,0.00015463,2]
[421121120,1777091440107,-500.0,0.00015463,2]
[421121121,1777091440119,-500.0,0.00015463,2]
[421121122,1777091440132,-500.0,0.00015463,2]
[421121123,1777091440144,-500.0,0.00015463,2]
[421121124,1777091440156,-500.0,0.00015463,2]
[421121125,1777091440168,-500.0,0.00015463,2]
[421121126,1777091440181,-500.0,0.00015463,2]
[421121127,1777091440193,-500.0,0.00015463,2]
[421121128,1777091440205,-500.0,0.00015463,2]
[421121129,1777091440217,-500.0,0.00015463,2]
[421121130,1777091440230,-500.0,0.00015463,2]
[421121131,1777091440241,-500.0,0.00015463,2]
[421121132,1777091440254,-500.0,0.00015463,2]
[421121133,1777091440267,-500.0,0.00015463,2]
[421121134,1777091440279,-500.0,0.00015463,2]
[421121135,1777091440292,-368.3674004,0.00015463,2]
[421121136,1777091440305,-500.0,0.00015463,2]
[421121137,1777091440317,-8565.15727351,0.00015464,2]
[421121138,1777091440530,-281.76803911,0.00015463,2]
[421121139,1777091440542,-3283.41844083,0.00015464,2]
[421121140,1777091440558,-380.30947352,0.00015464,2]
[421121141,1777091440921,-4532.69264137,0.00015464,2]
[421121144,1777091446593,-519.191,0.00013544,2]
[421121145,1777091446603,-280.80906697,0.00015394,2]
[421121146,1777091446655,-579.00453897,0.00015394,2]
[421121147,1777091446665,-736121.16892641,0.00015464,2]
[421121148,1777091446677,-9567.46598948,0.00015464,2]
[421121150,1777091446719,-257.72629871,0.00015464,2]
[421121151,1777091446746,-565.6000001,0.00015464,2]
[421121152,1777091446760,-4504.83531409,0.00015464,2]
[421121153,1777091446773,-1261.267356,0.00015464,2]
[421121154,1777091446786,-8489.11541545,0.00015464,2]
[421121155,1777091447115,-4607.50048399,0.00015464,2]
[421121156,1777091447128,-6210.12835246,0.00015464,2]
[421121157,1777091447175,-290.0,0.00015464,2]
[421121158,1777091447236,-7442.67365157,0.00015464,2]
[421121159,1777091447296,-777929.98354769,0.00015464,2]
[421121160,1777091447411,-1423.0623945,0.00015464,2]
[421121193,1777092632548,-290.80240393,9.9e-05,2]
[421121196,1777092638708,-119.80759607,9.9e-05,2]
[421121197,1777092638718,-321.79562646,0.000113,2]
[421121198,1777092638728,-173.61225172,0.00013,2]
[421121199,1777092638814,-76.38774828,0.00013,2]
[421121200,1777092638824,-290.0,0.00013497,2]
[421121201,1777092638835,-1380.17976291,0.00013498,2]
[421121202,1777092638847,-547.72878085,0.00013498,2]
[421121203,1777092638868,-72.09145624,0.00013498,2]
[421121204,1777092638878,-186.50854376,0.00013498,2]
[421121205,1777092638891,-383.736,0.00013498,2]
[421121234,1777092640809,-162.24807931,0.00013182,2]
[421121235,1777092640820,-4429.75545624,0.00013498,2]
[421121236,1777092640830,-2500.0,0.00013498,2]
[421121237,1777092640840,-3620.36650896,0.00013499,2]
[421121238,1777092640849,-504.0,0.000135,2]
[421121239,1777092640859,-3421.43,0.00013544,2]
[421121240,1777092640869,-151.0,0.0001359,2]
[421121241,1777092640879,-151.0,0.0001359,2]
[421121242,1777092640888,-151.0,0.0001359,2]
[421121243,1777092640899,-151.0,0.0001359,2]
[421121244,1777092640908,-151.0,0.0001359,2]
[421121245,1777092640919,-500.0,0.0001359,2]
[421121246,1777092640928,-151.0,0.0001359,2]
[421121247,1777092640938,-500.0,0.0001359,2]
[421121248,1777092640947,-151.0,0.0001359,2]
[421121249,1777092640957,-500.0,0.0001359,2]
[421121250,1777092640967,-151.0,0.0001359,2]
[421121251,1777092640976,-500.0,0.0001359,2]
[421121252,1777092640986,-151.0,0.0001359,2]
[421121253,1777092640996,-500.0,0.0001359,2]
[421121254,1777092641019,-151.0,0.0001359,2]
[421121255,1777092641031,-500.0,0.0001359,2]
[421121256,1777092641041,-151.0,0.0001359,2]
[421121257,1777092641051,-500.0,0.0001359,2]
[421121258,1777092641062,-151.0,0.0001359,2]
[421121259,1777092641071,-500.0,0.0001359,2]
[421121260,1777092641081,-500.0,0.0001359,2]
[421121261,1777092641090,-500.0,0.0001359,2]
[421121262,1777092641100,-500.0,0.0001359,2]
[421121263,1777092641110,-247.93870769,0.0001359,2]
[421121264,1777092641121,-151.0,0.0001359,2]
[421121265,1777092641131,-12792.0257785,0.00013596,2]
[421121266,1777092641153,-1009.64428806,0.00013596,2]
[421121267,1777092641166,-14402.04804371,0.00013596,2]
[421121268,1777092643482,-659.52433881,0.00013596,2]
[421121269,1777092643586,-546.0,0.00013596,2]
[421121270,1777092643639,-683.12095,0.00013596,2]
[421121285,1777092646460,-7142.54238624,0.00013596,2]
[421121286,1777092646622,-8343.695,0.00013596,2]
[421121300,1777093096777,-1674.83,9.89e-05,3]
[421121301,1777093096841,-5000.01,9.89e-05,3]
[421121302,1777093100056,-704.69990113,9.89e-05,3]
[421121303,1777093100082,-3590.61019774,9.89e-05,3]
[421121313,1777093564613,-285.569039,0.00010879,2]
[421121314,1777093564644,-155.55325559,0.00011967,2]
[421121315,1777093564674,-250.0,0.00011967,2]
[421121316,1777093564702,-934.48175674,0.00011967,2]
[421121317,1777093564733,-150.0,0.00012132,2]
[421121318,1777093564762,-186.5620799,0.00013043,2]
[421121319,1777093564830,-1616.6891525,0.00013078,2]
[421121320,1777093564865,-1766.631695,0.00013078,2]
[421121321,1777093564895,-162.24807931,0.00013106,2]
[421121322,1777093565034,-913.42965823,0.00013389,2]
[421121323,1777093565048,-265.57034177,0.00013389,2]
[421121324,1777093565058,-1501.06135323,0.0001339,2]
[421121325,1777093565071,-162.24807931,0.0001339,2]
[421121326,1777093565085,-836.69056746,0.0001339,2]
[421121327,1777093565095,-186.5620799,0.00013395,2]
[421121328,1777093565104,-118.99780402,0.00013396,2]
[421121329,1777093570010,-43.82708601,0.00013396,2]
[421121330,1777093570039,-213.9842727,0.00013398,2]
[421121331,1777093570070,-151.0,0.00013488,2]
[421121332,1777093570100,-151.0,0.00013488,2]
[421121333,1777093570130,-151.0,0.00013488,2]
[421121334,1777093570160,-151.0,0.00013488,2]
[421121335,1777093570191,-151.0,0.00013488,2]
[421121336,1777093570221,-151.0,0.00013488,2]
[421121337,1777093570250,-151.0,0.00013488,2]
[421121338,1777093570279,-151.0,0.00013488,2]
[421121339,1777093570309,-151.0,0.00013488,2]
[421121340,1777093570341,-151.0,0.00013488,2]
[421121341,1777093570371,-151.0,0.00013488,2]
[421121342,1777093570401,-151.0,0.00013488,2]
[421121343,1777093570431,-151.0,0.00013488,2]
[421121344,1777093570559,-2457.428,0.00013488,2]
[421121345,1777093570665,-167.983,0.00013488,2]
[421121346,1777093570696,-500.0,0.00013489,2]
[421121347,1777093570727,-500.0,0.00013489,2]
[421121348,1777093570758,-500.0,0.00013489,2]
[421121349,1777093570788,-500.0,0.00013489,2]
[421121350,1777093570818,-211.30509196,0.00013489,2]
[421121351,1777093571119,-241.43381608,0.00013489,2]
[421121352,1777093571128,-190.80237454,0.00013489,2]
[421121353,1777093571144,-309.19762546,0.00013489,2]
[421121354,1777093571153,-143.54128258,0.00013489,2]
[421121355,1777093573365,-356.45871742,0.00013489,2]
[421121356,1777093573398,-500.0,0.00013489,2]
[421121357,1777093573432,-500.0,0.00013489,2]
[421121358,1777093573465,-500.0,0.00013489,2]
[421121359,1777093573497,-500.0,0.00013489,2]
[421121360,1777093573543,-500.0,0.00013489,2]
[421121361,1777093573578,-500.0,0.00013489,2]
[421121362,1777093573612,-500.0,0.00013489,2]
[421121363,1777093573647,-500.0,0.00013489,2]
[421121364,1777093573682,-500.0,0.00013489,2]
[421121365,1777093573730,-500.0,0.00013489,2]
[421121366,1777093573762,-500.0,0.00013489,2]
[421121367,1777093573794,-345.81419646,0.00013489,2]
[421121368,1777093573828,-500.0,0.00013489,2]
[421121369,1777093573861,-500.0,0.00013489,2]
[421121370,1777093574262,-287.10256516,0.00013489,2]
[421121371,1777093574276,-212.89743484,0.00013489,2]
[421121372,1777093574286,-95.48417224,0.00013489,2]
[421121377,1777093831665,-300.0,0.000127,4]
[421121378,1777093831681,-85.37598275,0.000128,4]
[421121379,1777093831694,-514.62401725,0.000128,4]
[421121380,1777093831704,-173.97520062,0.000129,4]
[421121381,1777093831979,-719.62920142,0.000129,4]
[421121382,1777093831992,-6.39559796,0.000129,4]
[421121383,1777093832003,-250.0,0.00013,2]
[421121384,1777093832012,-162.24807931,0.00013356,2]
[421121385,1777093832022,-35.23074286,0.00013388,2]
[421121396,1777093832328,-273.91941079,0.00013388,2]
[421121397,1777093832338,-500.0,0.00013388,2]
[421121398,1777093832348,-121.49058921,0.00013388,2]
[421121399,1777093832362,-136.36659107,0.00013388,2]
[421121400,1777093832373,-764.86759136,0.00013389,2]
[421121401,1777093832384,-1237.08734021,0.00013389,2]
[421121402,1777093832412,-2712.58744176,0.00013389,2]
[421121403,1777093832424,-286508.18141018,0.00013389,2]
[421121411,1777093841211,-500.0,0.00013388,2]
[421121412,1777093841221,-500.0,0.00013388,2]
[421121413,1777093841231,-216.91723563,0.00013388,2]
[421121414,1777093841241,-500.0,0.00013388,2]
[421121415,1777093841251,-500.0,0.00013388,2]
[421121416,1777093841261,-500.0,0.00013388,2]
[421121417,1777093841271,-500.0,0.00013388,2]
[421121418,1777093841281,-500.0,0.00013388,2]
[421121419,1777093841291,-500.0,0.00013388,2]
[421121420,1777093841301,-500.0,0.00013388,2]
[421121421,1777093841311,-334.58141965,0.00013388,2]
[421121422,1777093841321,-500.0,0.00013388,2]
[421121423,1777093841331,-500.0,0.00013388,2]
[421121424,1777093841341,-10.07654123,0.00013388,2]
[421121425,1777093841354,-489.92345877,0.00013388,2]
[421121426,1777093841364,-250.0,0.00013388,2]
[421121427,1777093841375,-5347.18410256,0.00013389,2]
[421121428,1777093841395,-1029.67326749,0.00013389,2]
[421121429,1777093842860,-416.0,0.00013388,2]
[421121430,1777093843016,-84.0,0.00013388,2]
[421121431,1777093843026,-6510.94977471,0.00013389,2]
[421121442,1777093845796,-370.32589705,0.00013389,2]
[421121443,1777093846112,-381.13930652,0.00013389,2]
[421121444,1777093846171,-315.52696158,0.00013389,2]
[421121463,1777094011837,1389.0,0.000165,120]
[421121464,1777094223922,155.0,0.000165,120]
[421121465,1777094978667,-150.0,0.00012033,2]
[421121466,1777095031955,-200.0,0.000127,4]
[421121467,1777095031966,-400.0,0.000128,4]
[421121468,1777095031975,-137.89658391,0.000129,4]
[421121469,1777095032010,-562.10341609,0.000129,4]
[421121470,1777095032020,-162.24807931,0.0001291,2]
[421121471,1777095032029,-160.0,0.0001291,2]
[421121472,1777095032040,-162.82489003,0.00013188,2]
[421121473,1777095032049,-64.35913347,0.00013189,2]
[421121474,1777095032172,-122.20294643,0.00013189,2]
[421121475,1777095032181,-462.62947538,0.00013285,2]
[421121476,1777095032228,-716.37052462,0.00013285,2]
[421121477,1777095032237,-31.88273236,0.00013285,2]
[421121478,1777095032249,-118.11726764,0.00013285,2]
[421121479,1777095032259,-137.64253281,0.00013286,2]
[421121480,1777095032285,-362.35746719,0.00013286,2]
[421121482,1777095032297,-241.32235485,0.00013286,2]
[421121503,1777095038187,-258.67764515,0.00013286,2]
[421121504,1777095038196,-500.0,0.00013286,2]
[421121505,1777095038206,-500.0,0.00013286,2]
[421121506,1777095038215,-500.0,0.00013286,2]
[421121507,1777095038225,-500.0,0.00013286,2]
[421121508,1777095038234,-592.32893592,0.00013286,2]
[421121509,1777095038244,-66.53945153,0.00013286,2]
[421121510,1777095038278,-433.46054847,0.00013286,2]
[421121511,1777095038287,-119.47058169,0.00013286,2]
[421121512,1777095038338,-380.52941831,0.00013286,2]
[421121513,1777095038347,-500.0,0.00013286,2]
[421121514,1777095038357,-500.0,0.00013286,2]
[421121515,1777095038366,-500.0,0.00013286,2]
[421121516,1777095038376,-500.0,0.00013286,2]
[421121517,1777095038385,-500.0,0.00013286,2]
[421121518,1777095038395,-500.0,0.00013286,2]
[421121519,1777095038405,-415.69592726,0.00013286,2]
[421121520,1777095038417,-84.30407274,0.00013286,2]
[421121521,1777095038426,-500.0,0.00013286,2]
[421121522,1777095038436,-500.0,0.00013286,2]
[421121523,1777095038445,-500.0,0.00013286,2]
[421121524,1777095038455,-500.0,0.00013286,2]
[421121525,1777095038465,-500.0,0.00013286,2]
[421121526,1777095038474,-500.0,0.00013286,2]
[421121527,1777095038484,-500.0,0.00013286,2]
[421121528,1777095038494,-500.0,0.00013286,2]
[421121529,1777095038503,-500.0,0.00013286,2]
[421121530,1777095038513,-408.30901384,0.00013286,2]
[421121573,1777095040259,-213.9842727,0.00013189,2]
[421121574,1777095040270,-91.69098616,0.00013286,2]
[421121575,1777095040279,-285.3963214,0.00013286,2]
[421121576,1777095040292,-214.6036786,0.00013286,2]
[421121577,1777095040302,-429.7763214,0.00013286,2]
[421121578,1777095040316,-70.2236786,0.00013286,2]
[421121579,1777095040326,-500.0,0.00013286,2]
[421121580,1777095040337,-500.0,0.00013286,2]